{"text_format":"1","workbook":"xlsx","n_sheets":1,"sheets":["Sheet1"],"not_rendered":{"charts":0,"images":2,"macros":1,"external_links":0,"defined_names":1,"comments":1,"pivot_tables":0},"unopened":[],"bounds":{"document_bytes":16777216,"sheet_cells":100000,"rows_first":2000,"rows_last":500,"rows_between":2000,"halvings":0,"cell_chars":16384,"cell_head_chars":4096},"cells_cut":0,"cells_raw":0,"read":"whole","date_system":"1900"}

{"sheet":"Sheet1","index":0,"n_rows":41,"n_cols":30,"rows_kept":41,"cut":false,"hidden":false,"merged":[[11,5,11,8],[11,9,11,10],[13,12,13,18],[14,12,14,18],[17,4,17,8],[17,9,17,10],[19,4,19,8],[19,9,19,10],[7,12,7,13],[7,15,7,16],[23,5,23,6],[23,8,23,9],[23,11,23,12],[9,9,9,10],[9,12,9,13],[9,15,9,16],[9,5,9,8],[8,5,8,8],[8,9,8,10],[8,12,8,13],[8,15,8,16],[11,12,11,18],[13,9,13,10],[14,9,14,10],[31,11,31,12],[19,12,19,18],[25,5,25,6],[25,8,25,9],[25,11,25,12],[27,11,27,12],[29,11,29,12]]}
[]
[null,null,null,null,null,null,null,null,null,null,null,null,null,null,null,null,"Rev 1.00"]
[null,null,null,null,null,null,null,null,null,null,null,null,null,null,null,null,null,null,null,null,null,"5 amp power supply",null,null,null,"HCV-2",{"$f":"IF(J9=Z3,\"0.065\",IF(J9=Z4,\"0.075\",\"0.093\"))","v":"0.093"},{"$f":"IF(J9=Z3,\"2\",IF(J9=Z4,\"4\",\"8\"))","v":"8"}]
[null,null,null,null,null,null,null,null,null,null,null,null,null,null,null,null,null,null,null,null,null,"4 amps of NAC power",null,null,null,"HCV-4"]
[null,null,"   - The total alarm current may not exceed 1.6 amps.",null,null,null,null,null,null,null,null,null,null,null,null,null,null,null,null,null,null,"max battery size = 12 Ah",null,null,null,"HCV-8"]
[null,null,"   - The maximum battery size is 7Ah."]
[null,null,"   - This calculation includes maximum standby and alarm current for the zones."]
[null,null,null,null,null,null,null,null,null,null,null,null,"Standby",null,null,"Alarm"]
[null,null,null,null,null,"Select Panel Model    ",null,null,null,"HCV-8",null,null,{"$f":"AA3","v":"0.093"},null,null,0.4]
[null,null,null,null,null,"Number of Zones    ",null,null,null,{"$f":"AB3","v":"8"},null,null,{"$f":"AA18","v":9.4400000000000005E-3},null,null,{"$f":"AB18","v":0.16}]
[]
[null,null,null,null,null,"AUX Power Load (mA)    ",null,null,null,0,null,null,{"$f":"IF(J12>300,\" You have exceeded the 300 mA limit !\",\"\")","v":""}]
[]
[null,null,null,null,null,null,null,null,"NAC 1 Total Load (mA)   ",0,null,null,{"$f":"IF(J14>410,\"You have exceeded the 410 mA limit !\",\"\")","v":""},null,null,null,null,null,null,null,null,null,"standby","alarm",null,null,"standby","alarm"]
[null,null,null,null,null,null,null,null,"NAC 2 Total Load (mA)    ",0,null,null,{"$f":"IF(J15>410,\"You have exceeded the 410 mA limit !\",\"\")","v":""},null,null,null,null,null,null,null,null,"SOE-24V",5.8999999999999998E-5,0.15,null,"HCV2",{"$f":"IF(J9=Z3,\"0.00236\",\"0\")","v":"0"},{"$f":"IF(J9=Z3,\"0.15236\",\"0\")","v":"0"}]
[null,null,null,null,null,null,null,null,null,null,null,null,null,null,null,null,null,null,null,null,null,"SOE-24H",5.8999999999999998E-5,0.15,null,"HCV4",{"$f":"IF(J9=Z4,\"0.00472\",\"0\")","v":"0"},{"$f":"IF(J9=Z4,\"0.15472\",\"0\")","v":"0"}]
[null,null,null,null,null,null,null,null,null,null,null,null,null,null,null,null,null,null,null,null,null,"SOC-24V",5.8999999999999998E-5,0.15,null,"HCV8",{"$f":"IF(J9=Z5,\"0.00944\",\"0\")","v":"0.00944"},{"$f":"IF(J9=Z5,\"0.15944\",\"0\")","v":"0.15944"}]
[null,null,null,null,"Total Standby Load (amps)    ",null,null,null,null,{"$f":"X24","v":0.10299999999999999},null,null,null,null,null,null,null,null,null,null,null,"DCD",3.4999999999999997E-5,0.15,null,null,{"$f":"ROUNDUP(AA15+AA16+AA17,23)","v":9.4400000000000005E-3},{"$f":"ROUNDUP(AB15+AB16+AB17,3)","v":0.16}]
[]
[null,null,null,null,"Total Alarm Load (amps)    ",null,null,null,null,{"$f":"X27","v":0.56000000000000005},null,null,{"$f":"IF(J20>1.6,\"You have exceeded the 1.6 amp limit !\",\"\")","v":""},null,null,null,null,null,null,null,null,"Total Load - ",{"$f":"ROUNDUP(M10+J12+J14+J15+P10+M9+P9,2)","v":0.67},{"$f":"W20/1000","v":6.7000000000000002E-4}]
[null,null,null,null,null,null,null,null,null,null,null,null,null,null,null,null,null,null,null,null,null,null,"mA","amps"]
[null,null,null,"Calculation"]
[null,null,null,null,null,null,null,null,null,null,null,null,null,null,null,null,null,null,null,null,null,"convert standby to amps",null,{"$f":"J12/1000","v":0}]
[null,null,null,null,"Standby ",{"$f":"J18","v":0.10299999999999999},null,"x",{"$f":"AB36","v":24},null,"=",{"$f":"F24*I24","v":2.472},null,null,null,null,null,null,null,null,null,"total standby ",null,{"$f":"ROUNDUP(X23+M9+M10,3)","v":0.10299999999999999}]
[null,null,null,null,null,null,null,null,null,null,null,null,null,null,null,null,null,null,null,null,null,null,null,"nac1","nac2","aux"]
[null,null,null,null,"Alarm ",{"$f":"J20","v":0.56000000000000005},null,"x",{"$f":"AB40","v":8.3000000000000004E-2},null,"=",{"$f":"F26*I26","v":4.6480000000000007E-2},null,null,null,null,null,null,null,null,null,"convert to amps",null,{"$f":"J14/1000","v":0},{"$f":"J15/1000","v":0},{"$f":"J12/1000","v":0}]
[null,null,null,null,null,null,null,null,null,null,null,null,null,null,null,null,null,null,null,null,null,"total alarm",null,{"$f":"ROUNDUP(P9+P10+Z26+X26+Y26,3)","v":0.56000000000000005}]
[null,null,null,null,null,null,null,null,null,null,"Subtotal ",{"$f":"ROUNDUP(L24+L26,2)","v":2.5199999999999996}]
[null,null,null,null,null,null,null,null,null,null,null,null,null,null,null,null,null,null,null,null,null,null,null,null,null,null,null,"standby","alarm"]
[null,null,null,null,null,null,null,null,null,null,"Derating (%) ",25,null,null,null,null,null,null,null,null,null,null,null,20,null,null,null,12,5,8.3000000000000004E-2]
[null,null,null,null,null,null,null,null,null,null,null,null,null,null,null,null,null,null,null,null,null,null,null,25,null,null,null,24,10,0.16700000000000001]
[null,null,null,null,null,null,null,null,null,null,"Minimum Battery Size Required ",{"$f":"ROUNDUP(L28*X34,0)","v":4},null," Ah",null,null,null,null,null,null,null,null,null,null,null,null,null,36,15,0.25]
[null,null,null,null,null,null,null,null,null,null,null,null,null,null,null,null,null,null,null,null,null,null,null,null,null,null,null,48,30,0.5]
[null,null,null,{"$f":"IF(L32>7,\"You have exceeded the 7Ah maximum battery size!\",\" \")","v":" "},null,null,null,null,null,null,null,null,null,null,null,null,null,null,null,null,null,null,null,{"$f":"IF(L30=X30,1.2,1.25)","v":1.25},null,null,null,null,60,1]
[]
[null,null,null,null,null,null,null,null,null,null,null,null,null,null,null,null,null,null,null,null,null,null,null,null,null,null,"from combo box 1 -> ",24]
[]
[null," NOTE: Hochiki  hereby disclaims all warranties relating to this software product, whether expressed or  implied, including without",null,null,null,null,null,null,null,null,null,null,null,null,null,null,null,null,null,null,null,null,null,null,null,null,"from combobox 2  -> ",5]
[null," limitations any implied warranties of merchantability or fitness for a particular purpose.  Hochiki cannot and will not be liable"]
[null," for any incidental, consequential, special,  indirect or similar damages for any reason.  It is the responsibility of the user to",null,null,null,null,null,null,null,null,null,null,null,null,null,null,null,null,null,null,null,null,null,null,null,null,"alarm time calc  ",{"$f":"IF(AB38=AC30,AD30,IF(AB38=AC31,AD31,IF(AB38=AC32,AD32,IF(AB38=AC33,AD33,AD34))))","v":8.3000000000000004E-2}]
[null," ascertain the  accuracy and the reliability of any and all information generated or provided by this software."]